bitfinex/quotes_SOLUSD_20241107
["timestamp","ask_amount","ask_price","bid_price","bid_amount"]
[1730995543798,26.09523249,191.75,191.68,26.09523249]
[1730995543991,26.09523249,191.76,191.69,26.09523249]
[1730995544405,26.09523249,191.77,191.7,26.09523249]
[1730995546585,26.09523249,191.75,191.68,26.09523249]
[1730995548201,26.09523249,191.74,191.67,26.09523249]
[1730995548381,26.09523249,191.75,191.68,26.09523249]
[1730995548583,26.09523249,191.76,191.69,26.09523249]
[1730995549708,26.09523249,191.75,191.68,26.09523249]
[1730995549893,26.09523249,191.74,191.67,26.09523249]
[1730995550213,26.09523249,191.75,191.67,26.09523249]
[1730995550503,26.09523249,191.74,191.67,26.09523249]
[1730995550884,26.09523249,191.72,191.64,26.09523249]
[1730995551085,26.09523249,191.7,191.62,26.09523249]
[1730995551308,26.09523249,191.7,191.58,4.52108019]
[1730995551309,26.09523249,191.7,191.63,26.09523249]
[1730995551505,26.09523249,191.71,191.64,26.09523249]
[1730995552010,26.09523249,191.7,191.63,26.09523249]
[1730995552213,26.09523249,191.71,191.64,26.09523249]
[1730995552420,26.09523249,191.72,191.64,26.09523249]
[1730995552586,26.09523249,191.69,191.62,26.09523249]
[1730995553010,46.09523249,191.69,191.62,26.09523249]
[1730995553197,26.09523249,191.71,191.63,26.09523249]
[1730995553592,26.09523249,191.71,191.64,26.09523249]
[1730995553800,26.09523249,191.71,191.63,26.09523249]
[1730995554201,26.09523249,191.71,191.64,26.09523249]
[1730995555128,26.09523249,191.7,191.63,26.09523249]
[1730995555410,26.09523249,191.71,191.64,26.09523249]
[1730995555820,43.776884,191.77,191.66,26.09523249]
[1730995556022,43.776884,191.77,191.61,23.776884]
[1730995556023,26.09523249,191.7,191.63,26.09523249]
[1730995556513,26.09523249,191.72,191.65,26.09523249]
[1730995556692,26.09523249,191.71,191.64,26.09523249]
[1730995557019,26.09523249,191.7,191.63,26.09523249]
[1730995557824,26.09523249,191.7,191.58,0.32108019]
[1730995557825,26.09523249,191.71,191.64,26.09523249]
[1730995559317,26.09523249,191.67,191.58,0.32108019]
[1730995559506,26.09523249,191.67,191.6,26.09523249]
[1730995559915,26.09523249,191.68,191.61,26.09523249]
[1730995560619,26.09523249,191.7,191.63,26.09523249]
[1730995560925,26.09523249,191.7,191.58,0.32108019]
[1730995560926,26.09523249,191.7,191.64,26.09523249]
[1730995561216,26.09523249,191.72,191.65,26.09523249]
[1730995561609,26.09523249,191.74,191.67,26.09523249]
[1730995561817,7.29170216,191.78,191.72,26.09523249]
[1730995561818,26.09523249,191.78,191.72,26.09523249]
[1730995562122,26.09523249,191.78,191.71,26.09523249]
[1730995562317,26.09523249,191.75,191.68,26.09523249]
[1730995562521,26.09523249,191.76,191.69,26.09523249]
[1730995562708,26.09523249,191.77,191.7,26.09523249]
[1730995562913,26.09523249,191.76,191.69,26.09523249]
[1730995563098,26.09523249,191.77,191.7,26.09523249]
[1730995563715,26.09523249,191.78,191.71,26.09523249]
[1730995564323,26.09523249,191.77,191.7,26.09523249]
[1730995564502,26.09523249,191.77,191.63,0.12549]
[1730995564503,26.09523249,191.78,191.71,26.09523249]
[1730995564898,26.09523249,191.75,191.63,23.902374]
[1730995565209,26.09523249,191.78,191.71,26.09523249]
[1730995565720,26.09523249,191.78,191.66,23.776884]
[1730995565930,26.09523249,191.76,191.7,26.09523249]
[1730995566108,26.09523249,191.77,191.7,26.09523249]
[1730995566425,26.09523249,191.77,191.66,23.776884]
[1730995566426,26.09523249,191.81,191.74,26.09523249]
[1730995566721,26.09523249,191.82,191.75,26.09523249]
[1730995566918,26.09523249,191.83,191.67,0.1]
[1730995567121,26.09523249,191.83,191.76,26.09523249]
[1730995567333,26.09523249,191.82,191.75,26.09523249]
[1730995567617,26.09523249,191.82,191.74,26.09523249]
[1730995567825,26.09523249,191.82,191.71,28.102374]
[1730995567826,26.09523249,191.82,191.75,26.09523249]
[1730995568012,7.29170216,191.89,191.76,26.09523249]
[1730995568323,26.09523249,191.82,191.75,26.09523249]
[1730995568527,7.29170216,191.89,191.78,26.09523249]
[1730995568528,26.09523249,191.85,191.78,26.09523249]
[1730995568736,7.29170216,191.89,191.72,20.0]
[1730995568737,26.09523249,191.87,191.8,26.09523249]
[1730995569234,26.09523249,191.88,191.81,26.09523249]
[1730995569522,26.09523249,191.87,191.8,26.09523249]
[1730995570509,26.09523249,191.87,191.75,0.12549]
[1730995570510,26.09523249,191.85,191.78,26.09523249]
[1730995570706,26.09523249,191.84,191.77,26.09523249]
[1730995571509,26.09523249,191.85,191.78,26.09523249]
[1730995571825,26.09523249,191.84,191.77,26.09523249]
[1730995572011,26.09523249,191.85,191.78,26.09523249]
[1730995572409,26.09523249,191.83,191.72,23.776884]
[1730995572635,26.09523249,191.83,191.76,26.09523249]
[1730995573127,0.12549,191.82,191.76,26.09523249]
[1730995573314,26.09523249,191.81,191.74,26.09523249]
[1730995573507,20.0,191.82,191.76,26.09523249]
[1730995573725,69.87211649,191.86,191.79,26.09523249]
[1730995574031,26.22072249,191.85,191.78,26.09523249]
[1730995574226,20.0,191.84,191.78,26.09523249]
[1730995574526,0.12549,191.83,191.78,26.09523249]
[1730995574712,26.22072249,191.83,191.76,26.09523249]
[1730995575109,49.87211649,191.82,191.75,26.09523249]
[1730995575323,23.776884,191.82,191.76,26.09523249]
[1730995575529,16.30349494,191.81,191.74,16.30349494]
[1730995575915,40.08037894,191.82,191.75,16.30349494]
[1730995576115,0.12549,191.81,191.75,16.30349494]
[1730995576512,16.30349494,191.82,191.75,16.30349494]
[1730995576913,16.42898494,191.83,191.76,16.30349494]
[1730995577114,20.0,191.82,191.76,16.30349494]
[1730995577422,36.30349494,191.82,191.75,16.30349494]
[1730995577735,16.30349494,191.83,191.75,16.30349494]
[1730995577913,20.0,191.82,191.75,16.30349494]
[1730995578109,0.12549,191.81,191.75,16.30349494]
[1730995578444,0.12549,191.81,191.73,16.30349494]
[1730995578445,16.42898494,191.81,191.73,16.30349494]
[1730995578619,36.30349494,191.8,191.73,16.30349494]
[1730995578812,16.30349494,191.77,191.7,16.30349494]
[1730995579011,16.30349494,191.77,191.6,37.95813352]
[1730995579012,16.30349494,191.78,191.71,16.30349494]
[1730995579209,23.776884,191.75,191.69,16.30349494]
[1730995579638,23.776884,191.75,191.7,16.30349494]
[1730995579932,20.0,191.77,191.72,16.30349494]
[1730995580139,20.0,191.77,191.71,16.30349494]
[1730995580341,16.42898494,191.76,191.69,16.30349494]
[1730995580539,20.0,191.75,191.69,16.30349494]
[1730995580721,0.12549,191.74,191.68,16.30349494]
[1730995580912,16.42898494,191.72,191.6,16.265]
[1730995581119,16.42898494,191.72,191.64,16.30349494]
[1730995581120,20.0,191.7,191.64,16.30349494]
[1730995581328,20.0,191.7,191.58,4.52108019]
[1730995581329,20.0,191.64,191.58,0.32108019]
[1730995581519,20.0,191.64,191.59,16.30349494]
[1730995581715,20.0,191.64,191.58,16.62457513]
[1730995581716,20.0,191.62,191.58,16.62457513]
[1730995582048,20.0,191.64,191.6,16.30349494]
[1730995582336,20.0,191.66,191.6,16.30349494]
[1730995582642,20.0,191.66,191.61,16.30349494]
[1730995582841,20.0,191.68,191.62,16.30349494]
[1730995583135,20.0,191.68,191.58,0.32108019]
[1730995583136,36.30349494,191.68,191.61,16.30349494]
[1730995583339,20.0,191.66,191.6,16.30349494]
[1730995583523,46.12797926,191.66,191.6,26.12797926]
[1730995583722,46.12797926,191.66,191.58,0.32108019]
[1730995583723,20.0,191.64,191.59,26.12797926]
[1730995583920,20.0,191.64,191.58,26.44905945]
[1730995584224,20.0,191.64,191.59,26.12797926]
[1730995584633,20.0,191.64,191.58,26.44905945]
[1730995585225,20.0,191.64,191.58,0.32108019]
[1730995585434,20.0,191.64,191.59,26.12797926]
[1730995586225,46.12797926,191.64,191.58,26.44905945]
[1730995586643,26.12797926,191.63,191.58,0.32108019]
[1730995586830,20.0,191.64,191.58,26.44905945]
[1730995587025,20.0,191.64,191.58,0.32108019]
[1730995587234,46.12797926,191.64,191.58,0.32108019]
[1730995587753,26.12797926,191.63,191.58,0.32108019]
[1730995588130,20.0,191.59,191.58,0.32108019]
[1730995588748,6.0859,191.66,191.58,0.32108019]
[1730995588749,26.12797926,191.62,191.58,0.32108019]
[1730995588950,20.0,191.59,191.58,0.32108019]
[1730995589129,26.12797926,191.65,191.58,26.44905945]
[1730995589442,49.90486326,191.59,191.58,0.32108019]
[1730995589748,23.776884,191.63,191.58,0.32108019]
[1730995589934,49.90486326,191.6,191.58,0.32108019]
[1730995590534,20.0,191.59,191.58,0.32108019]
[1730995590732,43.776884,191.59,191.58,0.32108019]
[1730995591432,69.90486326,191.59,191.58,0.32108019]
[1730995591630,43.776884,191.59,191.58,0.32108019]
[1730995591853,20.0,191.59,191.58,0.32108019]
[1730995593030,43.776884,191.59,191.58,0.32108019]
[1730995593630,69.90486326,191.59,191.58,0.32108019]
[1730995593932,76.39755538,191.59,191.58,0.32108019]
[1730995594146,76.39755538,191.59,191.58,1e-08]
[1730995595574,20.0,191.51,191.5,0.5870755]
[1730995595754,69.90486326,191.51,191.5,0.5870755]
[1730995595940,69.90486326,191.51,191.5,1e-08]
[1730995597257,96.03284252,191.51,191.5,1e-08]
[1730995597553,76.39755538,191.51,191.5,1e-08]
[1730995597755,69.90486326,191.51,191.5,1e-08]
[1730995598252,102.52553464,191.51,191.5,1e-08]
[1730995598468,26.49269212,191.51,191.5,1e-08]
[1730995598634,26.12797926,191.51,191.5,1e-08]
[1730995598942,32.62067138,191.51,191.5,1e-08]
[1730995599135,40.03786354,191.51,191.5,1e-08]
[1730995599532,66.1658428,191.51,191.5,1e-08]
[1730995599732,89.9427268,191.51,191.5,1e-08]
[1730995600037,109.9427268,191.51,191.5,1e-08]
[1730995600235,109.9427268,191.51,191.38,26.12797926]
[1730995600236,43.776884,191.5,191.38,26.12797926]
[1730995600441,20.0,191.44,191.39,26.12797926]
[1730995600637,26.12797926,191.45,191.38,26.12797926]
[1730995600959,56.39755538,191.5,191.38,26.12797926]
[1730995600960,23.776884,191.49,191.38,26.12797926]
[1730995601138,49.90486326,191.45,191.38,26.12797926]
[1730995601332,26.12797926,191.45,191.38,26.12797926]
[1730995601859,49.90486326,191.44,191.37,26.12797926]
[1730995602053,26.12797926,191.44,191.37,26.12797926]
[1730995602642,26.12797926,191.43,191.36,26.12797926]
[1730995602863,26.12797926,191.43,191.35,26.12797926]
[1730995603035,49.90486326,191.42,191.35,26.12797926]
[1730995603241,26.12797926,191.36,191.31,0.5870755]
[1730995603548,26.12797926,191.35,191.31,0.5870755]
[1730995603744,26.12797926,191.36,191.31,0.5870755]
[1730995603944,26.12797926,191.35,191.31,0.5870755]
[1730995604757,26.12797926,191.33,191.31,0.5870755]
[1730995605657,26.12797926,191.34,191.31,0.5870755]
[1730995606045,26.12797926,191.32,191.31,0.5870755]
[1730995606438,26.12797926,191.34,191.31,0.5870755]
[1730995606946,26.12797926,191.35,191.31,0.5870755]
[1730995607145,6.78158101,191.36,191.31,0.5870755]
[1730995607146,26.12797926,191.33,191.31,0.5870755]
[1730995607336,26.12797926,191.32,191.31,0.5870755]
[1730995607538,16.38394401,191.34,191.31,0.5870755]
[1730995608555,16.38394401,191.33,191.31,0.5870755]
[1730995609336,16.38394401,191.32,191.31,0.5870755]
[1730995609738,16.50943401,191.34,191.31,0.5870755]
[1730995610139,16.38394401,191.32,191.31,0.5870755]
[1730995610466,16.38394401,191.32,191.31,1e-08]
[1730995610641,40.16082801,191.32,191.31,1e-08]
[1730995611157,16.38394401,191.32,191.31,1e-08]
[1730995613961,16.38394401,191.33,191.31,1e-08]
[1730995614141,16.38394401,191.32,191.31,1e-08]
[1730995617541,1.43453836,191.37,191.31,1e-08]
[1730995617759,16.38394401,191.33,191.31,1e-08]
[1730995617960,16.38394401,191.34,191.31,1e-08]
[1730995618640,16.38394401,191.33,191.31,1e-08]
[1730995618867,16.38394401,191.32,191.31,1e-08]
[1730995619875,16.38394401,191.4,191.31,1e-08]
[1730995619876,0.1,191.48,191.31,1e-08]
[1730995620067,16.38394401,191.35,191.31,1e-08]
[1730995620482,16.38394401,191.39,191.31,16.38394402]
[1730995620799,16.38394401,191.37,191.31,1e-08]
[1730995621299,16.38394401,191.35,191.31,1e-08]
[1730995621479,16.38394401,191.33,191.31,1e-08]
[1730995622595,16.38394401,191.34,191.31,1e-08]
[1730995623798,7.10658101,191.42,191.32,16.38394401]
[1730995624000,16.38394401,191.38,191.32,16.38394401]
[1730995624178,16.38394401,191.39,191.32,16.38394401]
[1730995624380,16.38394401,191.4,191.34,16.38394401]
[1730995624880,16.38394401,191.4,191.33,16.38394401]
[1730995625084,16.38394401,191.4,191.34,16.38394401]
[1730995625700,16.38394401,191.42,191.36,16.38394401]
[1730995625911,16.38394401,191.43,191.36,16.38394401]
[1730995626103,16.38394401,191.44,191.38,16.38394401]
[1730995626405,16.38394401,191.42,191.36,16.38394401]
[1730995626584,16.38394401,191.44,191.37,16.38394401]
[1730995626777,16.38394401,191.45,191.39,16.38394401]
[1730995626991,16.38394401,191.44,191.37,16.38394401]
[1730995627293,6.91880323,191.48,191.37,16.38394401]
[1730995627482,16.38394401,191.45,191.38,16.38394401]
[1730995628093,16.38394401,191.43,191.36,16.38394401]
[1730995628664,16.38394401,191.42,191.35,16.38394401]
[1730995628864,16.38394401,191.42,191.36,16.38394401]
[1730995629578,16.38394401,191.44,191.38,16.38394401]
[1730995629760,16.38394401,191.41,191.34,16.0397]
[1730995629958,16.38394401,191.4,191.34,16.38394401]
[1730995630171,16.38394401,191.38,191.31,1e-08]
[1730995630386,16.38394401,191.37,191.31,1e-08]
[1730995630696,16.38394401,191.36,191.31,1e-08]
[1730995630998,16.38394401,191.37,191.31,1e-08]
[1730995631286,16.38394401,191.35,191.31,1e-08]
[1730995631588,16.38394401,191.37,191.31,1e-08]
[1730995631792,16.38394401,191.38,191.31,16.38394402]
[1730995632384,16.38394401,191.39,191.33,16.38394401]
[1730995632588,16.38394401,191.41,191.34,16.38394401]
[1730995633101,6.5223,191.45,191.31,1e-08]
[1730995633102,16.38394401,191.38,191.31,1e-08]
[1730995633263,16.38394401,191.35,191.31,1e-08]
[1730995633468,16.38394401,191.34,191.31,1e-08]
[1730995633695,6.91880323,191.38,191.31,1e-08]
[1730995633696,16.38394401,191.33,191.31,1e-08]
[1730995634190,23.776884,191.31,191.21,16.38394401]
[1730995634486,16.38394401,191.26,191.2,16.38394401]
[1730995634794,13.43310323,191.33,191.2,16.38394401]
[1730995634795,16.38394401,191.27,191.2,16.38394401]
[1730995635286,6.4125,191.35,191.24,16.38394401]
[1730995635599,16.38394401,191.31,191.24,16.38394401]
[1730995635966,16.38394401,191.32,191.25,16.38394401]
[1730995636174,16.38394401,191.33,191.26,16.38394401]
[1730995636366,16.38394401,191.36,191.3,16.38394401]
[1730995636571,16.38394401,191.37,191.3,16.38394401]
[1730995637000,16.38394401,191.35,191.22,20.22549]
[1730995637197,16.38394401,191.37,191.3,16.38394401]
[1730995637491,16.38394401,191.39,191.24,0.12549]
[1730995637691,16.38394401,191.38,191.31,16.38394401]
[1730995637902,16.38394401,191.37,191.25,23.776884]
[1730995638073,16.38394401,191.37,191.3,16.38394401]
[1730995638267,16.38394401,191.37,191.25,23.776884]
[1730995638268,16.38394401,191.36,191.25,23.776884]
[1730995638480,16.38394401,191.36,191.29,16.38394401]
[1730995638689,16.38394401,191.35,191.28,16.38394401]
[1730995638968,0.12549,191.38,191.18,0.2]
[1730995638969,16.38394401,191.34,191.18,0.2]
[1730995639185,16.38394401,191.33,191.17,20.0]
[1730995639376,16.38394401,191.31,191.24,16.38394401]
[1730995639579,26.22194023,191.31,191.24,26.22194023]
[1730995639792,26.22194023,191.32,191.25,26.22194023]
[1730995640188,26.22194023,191.32,191.24,26.22194023]
[1730995641669,26.22194023,191.32,191.25,26.22194023]
[1730995642498,26.22194023,191.32,191.24,26.22194023]
[1730995642693,26.22194023,191.32,191.25,26.22194023]
[1730995642890,23.776884,191.36,191.17,23.902374]
[1730995642891,26.22194023,191.31,191.17,23.902374]
[1730995643077,26.22194023,191.32,191.24,26.22194023]
[1730995643272,26.22194023,191.32,191.25,26.22194023]
[1730995644094,26.22194023,191.32,191.24,26.22194023]
[1730995644287,46.22194023,191.29,191.22,26.22194023]
[1730995644597,49.99882423,191.28,191.2,26.22194023]
[1730995644777,49.99882423,191.28,191.21,26.22194023]
[1730995644977,20.0,191.29,191.24,26.22194023]
[1730995645293,20.0,191.29,191.16,6.3979]
[1730995645294,20.0,191.31,191.26,26.22194023]
[1730995645672,26.22194023,191.33,191.26,26.22194023]
[1730995645984,20.12549,191.32,191.26,26.22194023]
[1730995646295,26.22194023,191.31,191.24,26.22194023]
[1730995646674,6.91880323,191.32,191.26,26.22194023]
[1730995646982,26.22194023,191.34,191.27,26.22194023]
[1730995647182,26.34743023,191.33,191.26,26.22194023]
[1730995647788,26.22194023,191.32,191.25,26.22194023]
[1730995648103,26.22194023,191.32,191.22,26.22194023]
[1730995648104,26.22194023,191.29,191.22,26.22194023]
[1730995648278,26.22194023,191.28,191.21,26.22194023]
[1730995649087,26.22194023,191.28,191.16,6.3979]
[1730995649303,26.22194023,191.25,191.18,26.22194023]
[1730995649602,26.22194023,191.29,191.16,6.3979]
[1730995649793,26.22194023,191.28,191.16,6.3979]
[1730995650102,26.22194023,191.28,191.22,26.22194023]
[1730995650303,26.22194023,191.29,191.22,26.22194023]
[1730995650606,6.91880323,191.31,191.16,6.3979]
[1730995650607,20.0,191.28,191.24,26.22194023]
[1730995650779,26.22194023,191.32,191.25,26.22194023]
[1730995650983,26.22194023,191.34,191.27,26.22194023]
[1730995651478,0.12549,191.33,191.27,26.22194023]
[1730995651883,26.22194023,191.34,191.27,26.22194023]
[1730995652085,26.22194023,191.33,191.26,26.22194023]
[1730995652392,20.0,191.32,191.27,26.22194023]
[1730995652801,26.22194023,191.35,191.21,0.22549]
[1730995652985,26.22194023,191.34,191.27,26.22194023]
[1730995653299,26.22194023,191.34,191.27,23.72194023]
[1730995653478,26.22194023,191.35,191.28,26.22194023]
[1730995653685,26.34743023,191.34,191.27,26.22194023]
[1730995653894,26.22194023,191.32,191.14,0.2]
[1730995654096,26.22194023,191.27,191.11,0.2]
[1730995654303,26.22194023,191.27,191.2,26.22194023]
[1730995654607,20.0,191.27,191.21,26.22194023]
[1730995655009,26.22194023,191.29,191.22,26.22194023]
[1730995655302,20.0,191.28,191.22,26.22194023]
[1730995655992,46.22194023,191.28,191.21,26.22194023]
[1730995656495,6.88725772,191.36,191.23,26.22194023]
[1730995656496,26.22194023,191.3,191.23,26.22194023]
[1730995656697,20.0,191.29,191.23,26.22194023]
[1730995657192,20.0,191.27,191.21,26.22194023]
[1730995657400,20.0,191.27,191.22,26.22194023]
[1730995657594,1.30612328,191.33,191.16,6.3979]
[1730995657595,26.22194023,191.3,191.23,26.22194023]
[1730995657784,26.22194023,191.32,191.26,26.22194023]
[1730995658114,26.22194023,191.3,191.23,26.22194023]
[1730995658419,26.22194023,191.29,191.22,26.22194023]
[1730995658588,0.12549,191.28,191.22,26.22194023]
[1730995658794,0.12549,191.28,191.24,26.22194023]
[1730995659002,0.12549,191.28,191.23,26.22194023]
[1730995659304,0.12549,191.28,191.22,26.22194023]
[1730995660116,26.22194023,191.25,191.18,26.22194023]
[1730995660293,20.0,191.26,191.2,26.22194023]
[1730995660489,26.22194023,191.28,191.22,26.22194023]
[1730995660693,26.22194023,191.3,191.23,26.22194023]
[1730995660909,26.22194023,191.31,191.24,26.22194023]
[1730995661211,26.22194023,191.32,191.25,26.22194023]
[1730995661390,16.38767202,191.31,191.24,16.38767202]
[1730995661711,16.38767202,191.31,191.23,16.38767202]
[1730995662100,16.38767202,191.3,191.23,16.38767202]
[1730995662301,16.38767202,191.28,191.21,16.38767202]
[1730995662500,16.38767202,191.22,191.12,0.5870755]
[1730995662697,16.38767202,191.19,191.12,0.5870755]
[1730995662894,36.38767202,191.21,191.13,16.38767202]
[1730995663100,36.38767202,191.21,191.14,16.38767202]
[1730995663510,36.38767202,191.21,191.13,16.38767202]
[1730995663694,16.38767202,191.21,191.13,16.38767202]
[1730995664019,16.38767202,191.22,191.15,16.38767202]
[1730995664313,16.38767202,191.23,191.15,16.38767202]
[1730995664518,16.38767202,191.22,191.15,16.38767202]
[1730995665106,16.38767202,191.23,191.16,16.38767202]
[1730995665304,16.38767202,191.24,191.17,16.38767202]
[1730995665492,16.38767202,191.26,191.19,16.38767202]
[1730995665689,1.28692175,191.31,191.2,16.38767202]
[1730995665996,16.38767202,191.28,191.21,16.38767202]
[1730995666512,16.38767202,191.27,191.18,6.0539]
[1730995666704,16.38767202,191.27,191.04,70.0]
[1730995666705,16.38767202,191.26,191.12,22.5424755]
[1730995666909,16.38767202,191.3,191.12,22.5424755]
[1730995666910,16.38767202,191.24,191.16,16.38767202]
[1730995667293,16.38767202,191.24,191.17,16.38767202]
[1730995667810,16.38767202,191.25,191.18,16.38767202]
[1730995668008,16.38767202,191.26,191.18,16.38767202]
[1730995668893,16.38767202,191.26,191.14,0.1]
[1730995668894,16.38767202,191.23,191.16,16.38767202]
[1730995669100,16.38767202,191.22,191.15,16.38767202]
[1730995669299,16.38767202,191.2,191.13,16.38767202]
[1730995669819,16.38767202,191.2,191.12,38.83014752]
[1730995670010,16.38767202,191.2,191.13,16.38767202]
[1730995670212,16.38767202,191.2,191.12,0.5870755]
[1730995670426,16.38767202,191.15,191.12,0.5870755]
[1730995670724,16.38767202,191.17,191.12,0.5870755]
[1730995671708,16.38767202,191.16,191.12,0.5870755]
[1730995672821,16.38767202,191.18,191.12,0.5870755]
[1730995673016,16.38767202,191.17,191.12,0.5870755]
[1730995673514,16.38767202,191.19,191.12,16.97474752]
[1730995673703,6.499,191.22,191.13,16.38767202]
[1730995673704,16.38767202,191.2,191.13,16.38767202]
[1730995674715,16.38767202,191.19,191.12,16.97474752]
[1730995675301,16.38767202,191.2,191.13,16.38767202]
[1730995675714,16.38767202,191.21,191.13,16.38767202]
[1730995675917,16.38767202,191.21,191.14,16.38767202]
[1730995676512,0.12549,191.23,191.15,16.38767202]
[1730995676513,16.38767202,191.22,191.15,16.38767202]
[1730995676705,16.38767202,191.21,191.13,23.776884]
[1730995676905,16.38767202,191.21,191.14,16.38767202]
[1730995677905,13.36985772,191.27,191.15,40.16455602]
[1730995677906,6.4826,191.27,191.15,40.16455602]
[1730995678102,16.38767202,191.23,191.16,16.38767202]
[1730995678514,16.38767202,191.24,191.17,16.38767202]
[1730995678729,6.4826,191.27,191.15,23.776884]
[1730995678730,16.38767202,191.26,191.19,16.38767202]
[1730995679112,16.38767202,191.25,191.18,16.38767202]
[1730995679311,16.38767202,191.26,191.19,16.38767202]
[1730995679620,16.38767202,191.28,191.22,16.38767202]
[1730995679927,16.38767202,191.29,191.22,16.38767202]
[1730995680158,16.38767202,191.3,191.23,16.38767202]
[1730995680611,6.5273,191.32,191.14,23.776884]
[1730995680612,16.38767202,191.27,191.2,16.38767202]
[1730995681018,16.38767202,191.29,191.22,16.38767202]
[1730995681222,16.38767202,191.31,191.24,16.38767202]
[1730995681736,16.38767202,191.32,191.25,16.38767202]
[1730995681932,16.38767202,191.32,191.2,16.48767202]
[1730995681933,16.38767202,191.33,191.26,16.38767202]
[1730995682439,16.38767202,191.32,191.26,16.38767202]
[1730995682619,16.38767202,191.34,191.28,16.38767202]
[1730995682818,16.38767202,191.34,191.22,0.1]
[1730995682819,16.38767202,191.35,191.29,16.38767202]
[1730995683017,16.38767202,191.35,191.23,0.1]
[1730995683324,16.38767202,191.34,191.27,16.38767202]
[1730995683524,16.38767202,191.33,191.26,16.38767202]
[1730995683928,16.38767202,191.33,191.27,16.38767202]
[1730995684127,0.12549,191.38,191.24,16.38767202]
[1730995684128,16.38767202,191.31,191.24,16.38767202]
[1730995684340,16.38767202,191.29,191.22,16.38767202]
[1730995684631,16.38767202,191.28,191.21,16.38767202]
[1730995684824,6.6804699,191.31,191.22,0.1]
[1730995684825,16.38767202,191.31,191.22,0.1]
[1730995685022,17.71200083,191.4,191.25,16.38767202]
[1730995685023,16.38767202,191.32,191.25,16.38767202]
[1730995685224,16.38767202,191.3,191.23,16.38767202]
[1730995685440,16.38767202,191.3,191.24,16.38767202]
[1730995685608,16.38767202,191.32,191.25,16.38767202]
[1730995685809,16.38767202,191.33,191.27,16.38767202]
[1730995686522,16.38767202,191.34,191.23,0.1]
[1730995686716,16.38767202,191.34,191.28,16.38767202]
[1730995687344,17.71200083,191.4,191.21,23.776884]
[1730995687345,16.38767202,191.32,191.21,23.876884]
[1730995687520,26.22224148,191.3,191.23,26.22224148]
[1730995687715,26.22224148,191.3,191.21,23.776884]
[1730995687716,26.22224148,191.32,191.26,26.22224148]
[1730995688530,26.22224148,191.33,191.27,26.22224148]
[1730995688716,26.22224148,191.35,191.24,0.32549]
[1730995688927,26.22224148,191.35,191.28,26.22224148]
[1730995689329,26.22224148,191.33,191.28,23.776884]
[1730995689530,26.22224148,191.33,191.26,26.22224148]
[1730995690438,26.22224148,191.33,191.27,26.22224148]
[1730995690685,26.22224148,191.34,191.27,26.22224148]
[1730995691454,26.22224148,191.33,191.25,26.22224148]
[1730995691629,26.22224148,191.32,191.25,26.22224148]
[1730995691831,26.22224148,191.33,191.27,26.22224148]
[1730995692034,26.22224148,191.35,191.28,26.22224148]
[1730995692222,26.22224148,191.4,191.24,16.1793]
[1730995692223,26.22224148,191.34,191.27,26.22224148]
[1730995692543,26.22224148,191.35,191.28,26.22224148]
[1730995693157,1.32904315,191.41,191.29,49.99912548]
[1730995693158,26.22224148,191.36,191.29,49.99912548]
[1730995693330,26.22224148,191.36,191.29,26.22224148]
[1730995693640,16.2643,191.42,191.24,16.2793]
[1730995693641,26.22224148,191.34,191.27,26.22224148]
[1730995693840,26.22224148,191.35,191.28,26.22224148]
[1730995694142,26.22224148,191.36,191.3,23.776884]
[1730995694443,17.59840725,191.42,191.26,6.3217]
[1730995694444,26.22224148,191.35,191.28,49.99912548]
[1730995695133,26.22224148,191.35,191.29,26.22224148]
[1730995695343,26.22224148,191.36,191.3,23.776884]
[1730995695719,26.22224148,191.35,191.28,26.22224148]
[1730995695919,26.22224148,191.34,191.27,69.99912548]
[1730995696144,26.22224148,191.36,191.29,26.22224148]
[1730995696529,26.22224148,191.35,191.28,26.22224148]
[1730995696729,26.22224148,191.36,191.28,26.22224148]
[1730995697532,26.22224148,191.37,191.3,26.22224148]
[1730995697728,26.22224148,191.38,191.31,26.22224148]
[1730995697928,26.22224148,191.38,191.3,26.22224148]
[1730995698353,26.22224148,191.37,191.3,26.22224148]
[1730995699733,26.22224148,191.37,191.29,26.22224148]
[1730995699930,26.22224148,191.38,191.31,26.22224148]
[1730995700133,26.22224148,191.39,191.32,26.22224148]
[1730995700329,26.22224148,191.41,191.34,26.22224148]
[1730995700558,1.33410725,191.42,191.3,0.1]
[1730995700559,1.33410725,191.42,191.37,26.22224148]
[1730995700742,6.1163,191.43,191.3,26.22224148]
[1730995700743,6.1163,191.43,191.38,26.22224148]
[1730995701046,6.1163,191.43,191.39,26.22224148]
[1730995701440,6.1163,191.43,191.36,0.1]
[1730995701441,6.1163,191.43,191.4,26.22224148]
[1730995702359,6.1163,191.43,191.36,0.22549]
[1730995702360,6.1163,191.43,191.39,26.22224148]